[Event "Titled Tuesday Blitz May 2 Early 2023"]
[White "Danielyan, Vahe"]
[Black "Atabayev, Saparmyrat"]
[WhiteFideId "13304828"]
[BlackFideId "14000571"]
[WhiteElo "2423"]
[BlackElo "2448"]
[Result "1-0"]
[Round "04"]
[TimeControl "180+2"]
[Date "2023.05.02"]
[WhiteClock "0:00:35"]
[BlackClock "0:00:34"]

1. d4 {[%clk 0:03:00]}  d5 {[%clk 0:02:59]} 2. c4 {[%clk 0:03:01]}  e6 {[%clk 0:03:00]} 3. Nc3 {[%clk 0:03:01]}  Nf6 {[%clk 0:03:00]} 4. Bg5 {[%clk 0:03:00]}  Be7 {[%clk 0:02:59]} 5. Nf3 {[%clk 0:03:00]}  O-O {[%clk 0:02:59]} 6. e3 {[%clk 0:02:59]}  a6 {[%clk 0:02:59]} 7. Qc2 {[%clk 0:02:52]}  h6 {[%clk 0:02:59]} 8. Bxf6 {[%clk 0:02:48]}  Bxf6 {[%clk 0:03:00]} 9. h4 {[%clk 0:02:48]}  dxc4 {[%clk 0:02:57]} 10. Bxc4 {[%clk 0:02:47]}  b5 {[%clk 0:02:57]} 11. Be2 {[%clk 0:02:45]}  Nd7 {[%clk 0:02:55]} 12. g4 {[%clk 0:02:45]}  Be7 {[%clk 0:02:56]} 13. g5 {[%clk 0:02:45]}  h5 {[%clk 0:02:54]} 14. O-O-O {[%clk 0:02:42]}  Bb7 {[%clk 0:02:51]} 15. Rhg1 {[%clk 0:02:41]}  g6 {[%clk 0:02:51]} 16. Ne5 {[%clk 0:02:38]}  Nb6 {[%clk 0:02:26]} 17. Nxg6 {[%clk 0:02:34]}  b4 {[%clk 0:02:17]} 18. Nxf8 {[%clk 0:02:26]}  Bxf8 {[%clk 0:01:53]} 19. Ne4 {[%clk 0:02:24]}  Bg7 {[%clk 0:01:42]} 20. Nf6+ {[%clk 0:02:22]}  Kf8 {[%clk 0:01:42]} 21. Qc5+ {[%clk 0:02:21]}  Qd6 {[%clk 0:01:41]} 22. Qxd6+ {[%clk 0:02:18]}  cxd6 {[%clk 0:01:42]} 23. Kb1 {[%clk 0:02:17]}  a5 {[%clk 0:01:37]} 24. Rc1 {[%clk 0:02:16]}  a4 {[%clk 0:01:35]} 25. Rc7 {[%clk 0:02:15]}  Bd5 {[%clk 0:01:34]} 26. Rgc1 {[%clk 0:02:06]}  Bxf6 {[%clk 0:01:32]} 27. gxf6 {[%clk 0:02:05]}  a3 {[%clk 0:01:32]} 28. b3 {[%clk 0:02:05]}  Be4+ {[%clk 0:01:32]} 29. Ka1 {[%clk 0:02:04]}  Kg8 {[%clk 0:01:33]} 30. Rg1+ {[%clk 0:02:04]}  Kh8 {[%clk 0:01:30]} 31. Rxf7 {[%clk 0:02:01]}  Rc8 {[%clk 0:01:29]} 32. Re7 {[%clk 0:01:54]}  Nd5 {[%clk 0:01:26]} 33. Rxe6 {[%clk 0:01:28]}  Bf5 {[%clk 0:01:26]} 34. Rxd6 {[%clk 0:01:25]}  Nc3 {[%clk 0:01:25]} 35. Bc4 {[%clk 0:01:22]}  Ne4 {[%clk 0:01:25]} 36. Rb6 {[%clk 0:01:11]}  Kh7 {[%clk 0:01:19]} 37. f7 {[%clk 0:00:59]}  Bg4 {[%clk 0:01:16]} 38. Rxg4 {[%clk 0:00:54]}  hxg4 {[%clk 0:01:16]} 39. Re6 {[%clk 0:00:45]}  Nxf2 {[%clk 0:00:34]} 40. Re8 {[%clk 0:00:44]}  g3 {[%clk 0:00:33]} 41. f8=Q {[%clk 0:00:40]}  g2 {[%clk 0:00:34]} 42. Re7+ {[%clk 0:00:35]}  Kg6 {[%clk 0:00:34]} 43. Qg7+ {[%clk 0:00:35]}  Kf5 {[%clk 0:00:34]} 44. Qg5# {[%clk 0:00:35]} 1-0


[Site "https://www.chess.com"]

[Event "Titled Tuesday Blitz May 2 Early 2023"]
[White "Reprintsev, Alexander"]
[Black "Ohanyan, Emin"]
[WhiteFideId "14100541"]
[BlackFideId "13312022"]
[WhiteElo "2211"]
[BlackElo "2402"]
[Result "0-1"]
[Round "04"]
[TimeControl "180+2"]
[Date "2023.05.02"]
[WhiteClock "0:02:37"]
[BlackClock "0:02:20"]

1. e4 {[%clk 0:03:00]}  e5 {[%clk 0:02:58]} 2. Nf3 {[%clk 0:03:00]}  Nc6 {[%clk 0:02:58]} 3. Bc4 {[%clk 0:03:00]}  Nf6 {[%clk 0:02:58]} 4. Ng5 {[%clk 0:03:00]}  Bc5 {[%clk 0:02:57]} 5. Bxf7+ {[%clk 0:02:53]}  Ke7 {[%clk 0:02:56]} 6. Bd5 {[%clk 0:02:53]}  Rf8 {[%clk 0:02:57]} 7. O-O {[%clk 0:02:48]}  d6 {[%clk 0:02:56]} 8. c3 {[%clk 0:02:48]}  Qe8 {[%clk 0:02:54]} 9. d4 {[%clk 0:02:47]}  Bb6 {[%clk 0:02:51]} 10. b4 {[%clk 0:02:47]}  Qg6 {[%clk 0:02:44]} 11. b5 {[%clk 0:02:46]}  Nxd4 {[%clk 0:02:27]} 12. cxd4 {[%clk 0:02:46]}  Bxd4 {[%clk 0:02:27]} 13. Nc3 {[%clk 0:02:41]}  Bxc3 {[%clk 0:02:26]} 14. Rb1 {[%clk 0:02:41]}  h6 {[%clk 0:02:21]} 15. Qc2 {[%clk 0:02:39]}  Nxd5 {[%clk 0:02:20]} 16. exd5 {[%clk 0:02:37]}  Qxc2 {[%clk 0:02:20]} 0-1


[Site "https://www.chess.com"]

[Event "Titled Tuesday Blitz May 2 Early 2023"]
[White "Remizov, Yaroslav"]
[Black "Jovic, Stanoje"]
[WhiteFideId "34134015"]
[BlackFideId "905020"]
[WhiteElo "2412"]
[BlackElo "2236"]
[Result "1-0"]
[Round "04"]
[TimeControl "180+2"]
[Date "2023.05.02"]
[WhiteClock "0:00:06"]
[BlackClock "0:00:15"]

1. Nf3 {[%clk 0:03:00]}  Nf6 {[%clk 0:02:59]} 2. c4 {[%clk 0:03:00]}  c5 {[%clk 0:02:58]} 3. g3 {[%clk 0:03:00]}  Nc6 {[%clk 0:02:56]} 4. Bg2 {[%clk 0:03:01]}  d5 {[%clk 0:02:56]} 5. cxd5 {[%clk 0:03:00]}  Nxd5 {[%clk 0:02:56]} 6. O-O {[%clk 0:03:00]}  Bg4 {[%clk 0:02:54]} 7. Qb3 {[%clk 0:03:00]}  Nb6 {[%clk 0:02:42]} 8. a4 {[%clk 0:02:45]}  c4 {[%clk 0:02:41]} 9. Qe3 {[%clk 0:02:36]}  e6 {[%clk 0:02:31]} 10. d3 {[%clk 0:02:29]}  cxd3 {[%clk 0:02:26]} 11. exd3 {[%clk 0:02:17]}  Nd5 {[%clk 0:02:20]} 12. Qd2 {[%clk 0:02:00]}  Bb4 {[%clk 0:02:18]} 13. Nc3 {[%clk 0:02:00]}  O-O {[%clk 0:02:13]} 14. h3 {[%clk 0:02:00]}  Bh5 {[%clk 0:02:12]} 15. g4 {[%clk 0:02:00]}  Bg6 {[%clk 0:02:12]} 16. d4 {[%clk 0:01:59]}  Rc8 {[%clk 0:02:09]} 17. Ne5 {[%clk 0:01:14]}  Na5 {[%clk 0:02:00]} 18. Bxd5 {[%clk 0:00:51]}  exd5 {[%clk 0:02:00]} 19. Ra2 {[%clk 0:00:43]}  Bb1 {[%clk 0:01:52]} 20. Ra1 {[%clk 0:00:36]}  Nb3 {[%clk 0:01:50]} 21. Qd1 {[%clk 0:00:36]}  Nxa1 {[%clk 0:01:36]} 22. Nxb1 {[%clk 0:00:35]}  Qc7 {[%clk 0:01:30]} 23. Nd3 {[%clk 0:00:29]}  a5 {[%clk 0:01:26]} 24. Nc3 {[%clk 0:00:24]}  Bxc3 {[%clk 0:01:24]} 25. bxc3 {[%clk 0:00:25]}  Qxc3 {[%clk 0:01:23]} 26. Bb2 {[%clk 0:00:25]}  Qc2 {[%clk 0:01:08]} 27. Bxa1 {[%clk 0:00:25]}  Rfe8 {[%clk 0:01:04]} 28. Qxc2 {[%clk 0:00:18]}  Rxc2 {[%clk 0:01:03]} 29. Rb1 {[%clk 0:00:19]}  Ra2 {[%clk 0:00:57]} 30. Nc5 {[%clk 0:00:11]}  b6 {[%clk 0:00:52]} 31. Nd7 {[%clk 0:00:11]}  Ree2 {[%clk 0:00:45]} 32. Rf1 {[%clk 0:00:10]}  Re6 {[%clk 0:00:34]} 33. Rb1 {[%clk 0:00:06]}  Rxa4 {[%clk 0:00:30]} 34. Nc5 {[%clk 0:00:02]}  Rxa1 {[%clk 0:00:25]} 35. Rxa1 {[%clk 0:00:03]}  Rc6 {[%clk 0:00:25]} 36. Nd3 {[%clk 0:00:03]}  f6 {[%clk 0:00:25]} 37. Nf4 {[%clk 0:00:03]}  Kf7 {[%clk 0:00:20]} 38. Nxd5 {[%clk 0:00:03]}  b5 {[%clk 0:00:20]} 39. Rxa5 {[%clk 0:00:02]}  Rc1+ {[%clk 0:00:17]} 40. Kg2 {[%clk 0:00:03]}  Rb1 {[%clk 0:00:18]} 41. Nc3 {[%clk 0:00:03]}  Rb4 {[%clk 0:00:16]} 42. Nxb5 {[%clk 0:00:04]}  h5 {[%clk 0:00:15]} 43. Ra7+ {[%clk 0:00:04]}  Kg6 {[%clk 0:00:16]} 44. gxh5+ {[%clk 0:00:05]}  Kh6 {[%clk 0:00:16]} 45. Nd6 {[%clk 0:00:05]}  Rxd4 {[%clk 0:00:15]} 46. Nf5+ {[%clk 0:00:05]}  Kxh5 {[%clk 0:00:15]} 47. Nxd4 {[%clk 0:00:06]} 1-0


[Site "https://www.chess.com"]

[Event "Titled Tuesday Blitz May 2 Early 2023"]
[White "Pakleza, Zbigniew"]
[Black "Sousa, Andre Ventura"]
[WhiteFideId "1119290"]
[BlackFideId "1917617"]
[WhiteElo "2410"]
[BlackElo "2348"]
[Result "1-0"]
[Round "04"]
[TimeControl "180+2"]
[Date "2023.05.02"]
[WhiteClock "0:00:02"]
[BlackClock "0:00:33"]

1. d4 {[%clk 0:03:00]}  Nf6 {[%clk 0:03:00]} 2. Nf3 {[%clk 0:03:00]}  e6 {[%clk 0:02:59]} 3. Bf4 {[%clk 0:03:00]}  b6 {[%clk 0:02:58]} 4. e3 {[%clk 0:03:00]}  h6 {[%clk 0:02:52]} 5. h3 {[%clk 0:03:00]}  c5 {[%clk 0:02:51]} 6. c3 {[%clk 0:03:00]}  cxd4 {[%clk 0:02:50]} 7. cxd4 {[%clk 0:02:59]}  Nc6 {[%clk 0:02:46]} 8. Nc3 {[%clk 0:02:57]}  Bb7 {[%clk 0:02:35]} 9. Bd3 {[%clk 0:02:55]}  Be7 {[%clk 0:02:32]} 10. Rc1 {[%clk 0:02:53]}  O-O {[%clk 0:02:31]} 11. O-O {[%clk 0:02:53]}  Rc8 {[%clk 0:02:29]} 12. a3 {[%clk 0:02:53]}  a6 {[%clk 0:02:26]} 13. e4 {[%clk 0:02:48]}  d6 {[%clk 0:02:19]} 14. Bh2 {[%clk 0:02:39]}  b5 {[%clk 0:02:15]} 15. Re1 {[%clk 0:02:33]}  Re8 {[%clk 0:02:13]} 16. Bb1 {[%clk 0:02:28]}  Bf8 {[%clk 0:02:10]} 17. Qd3 {[%clk 0:02:08]}  e5 {[%clk 0:02:05]} 18. Ba2 {[%clk 0:01:55]}  exd4 {[%clk 0:02:01]} 19. Nxd4 {[%clk 0:01:56]}  Ne5 {[%clk 0:02:00]} 20. Qd1 {[%clk 0:01:34]}  Nc4 {[%clk 0:01:59]} 21. Qc2 {[%clk 0:01:21]}  d5 {[%clk 0:01:47]} 22. e5 {[%clk 0:00:54]}  Ne4 {[%clk 0:01:47]} 23. Nxe4 {[%clk 0:00:55]}  dxe4 {[%clk 0:01:44]} 24. Rcd1 {[%clk 0:00:53]}  Ne3 {[%clk 0:01:37]} 25. Qb3 {[%clk 0:00:32]}  Nc4 {[%clk 0:00:57]} 26. Nxb5 {[%clk 0:00:27]}  Qg5 {[%clk 0:00:52]} 27. Nd6 {[%clk 0:00:21]}  Bxd6 {[%clk 0:00:48]} 28. exd6 {[%clk 0:00:22]}  e3 {[%clk 0:00:40]} 29. Qxb7 {[%clk 0:00:16]}  exf2+ {[%clk 0:00:40]} 30. Kxf2 {[%clk 0:00:17]}  Qc5+ {[%clk 0:00:39]} 31. Kf1 {[%clk 0:00:11]}  Nd2+ {[%clk 0:00:34]} 32. Rxd2 {[%clk 0:00:08]}  Rxe1+ {[%clk 0:00:35]} 33. Kxe1 {[%clk 0:00:09]}  Re8+ {[%clk 0:00:35]} 34. Kd1 {[%clk 0:00:03]}  Qh5+ {[%clk 0:00:34]} 35. Qf3 {[%clk 0:00:02]}  Qb5 {[%clk 0:00:33]} 36. Qxf7+ {[%clk 0:00:02]} 1-0


[Site "https://www.chess.com"]

[Event "Titled Tuesday Blitz May 2 Early 2023"]
[White "Sieciechowicz, Marcin"]
[Black "Krsnik Cohar, Ivan Vihor"]
[WhiteFideId "1130170"]
[BlackFideId "14520044"]
[WhiteElo "2302"]
[BlackElo "2414"]
[Result "1-0"]
[Round "04"]
[TimeControl "180+2"]
[Date "2023.05.02"]
[WhiteClock "0:02:26"]
[BlackClock "0:00:16"]

1. d4 {[%clk 0:03:00]}  Nf6 {[%clk 0:02:58]} 2. Bf4 {[%clk 0:03:01]}  d6 {[%clk 0:02:57]} 3. e3 {[%clk 0:03:01]}  Nbd7 {[%clk 0:02:57]} 4. Nf3 {[%clk 0:03:01]}  g6 {[%clk 0:02:57]} 5. h3 {[%clk 0:03:01]}  Bg7 {[%clk 0:02:57]} 6. Be2 {[%clk 0:03:02]}  O-O {[%clk 0:02:57]} 7. O-O {[%clk 0:03:02]}  c6 {[%clk 0:02:56]} 8. c3 {[%clk 0:03:02]}  Qc7 {[%clk 0:02:53]} 9. Bh2 {[%clk 0:03:01]}  e5 {[%clk 0:02:51]} 10. Nbd2 {[%clk 0:03:01]}  Rd8 {[%clk 0:02:29]} 11. Qc2 {[%clk 0:03:01]}  a6 {[%clk 0:02:11]} 12. Nc4 {[%clk 0:03:01]}  b5 {[%clk 0:02:11]} 13. Nxd6 {[%clk 0:03:01]}  Qxd6 {[%clk 0:02:08]} 14. dxe5 {[%clk 0:03:01]}  Qe6 {[%clk 0:02:01]} 15. Nd4 {[%clk 0:02:56]}  Qe8 {[%clk 0:01:54]} 16. Nxc6 {[%clk 0:02:40]}  Nd5 {[%clk 0:01:40]} 17. Nxd8 {[%clk 0:02:41]}  Qxd8 {[%clk 0:01:27]} 18. Bf3 {[%clk 0:02:41]}  Nxe5 {[%clk 0:00:35]} 19. Bxe5 {[%clk 0:02:40]}  Bxe5 {[%clk 0:00:36]} 20. Rfd1 {[%clk 0:02:40]}  Bb7 {[%clk 0:00:37]} 21. Bxd5 {[%clk 0:02:33]}  Bxd5 {[%clk 0:00:33]} 22. Qd3 {[%clk 0:02:27]}  Qc7 {[%clk 0:00:16]} 23. Qxd5 {[%clk 0:02:26]} 1-0


[Site "https://www.chess.com"]

[Event "Titled Tuesday Blitz May 2 Early 2023"]
[White "Mortazavi, Ali"]
[Black "Bacallao Alonso, Yusnel"]
[WhiteFideId "401323"]
[BlackFideId "3507416"]
[WhiteElo "2339"]
[BlackElo "2561"]
[Result "1-0"]
[Round "04"]
[TimeControl "180+2"]
[Date "2023.05.02"]
[WhiteClock "0:00:05"]
[BlackClock "0:00:01"]

1. Nf3 {[%clk 0:03:00]}  d5 {[%clk 0:02:59]} 2. g3 {[%clk 0:03:01]}  g6 {[%clk 0:02:59]} 3. Bg2 {[%clk 0:03:01]}  Bg7 {[%clk 0:02:59]} 4. O-O {[%clk 0:03:02]}  e5 {[%clk 0:02:59]} 5. d3 {[%clk 0:03:02]}  Nc6 {[%clk 0:02:59]} 6. Nbd2 {[%clk 0:03:02]}  Nge7 {[%clk 0:02:59]} 7. e4 {[%clk 0:03:03]}  O-O {[%clk 0:02:59]} 8. a4 {[%clk 0:03:03]}  a5 {[%clk 0:02:59]} 9. exd5 {[%clk 0:02:59]}  Nxd5 {[%clk 0:02:59]} 10. Re1 {[%clk 0:03:00]}  Re8 {[%clk 0:02:58]} 11. Nc4 {[%clk 0:02:53]}  h6 {[%clk 0:02:54]} 12. c3 {[%clk 0:02:53]}  Bf5 {[%clk 0:02:44]} 13. Nh4 {[%clk 0:02:53]}  Be6 {[%clk 0:02:43]} 14. Nf3 {[%clk 0:02:53]}  Bf5 {[%clk 0:02:28]} 15. Nh4 {[%clk 0:02:53]}  Be6 {[%clk 0:02:28]} 16. Nf3 {[%clk 0:02:53]}  f6 {[%clk 0:02:27]} 17. d4 {[%clk 0:02:11]}  Nxc3 {[%clk 0:02:19]} 18. bxc3 {[%clk 0:02:10]}  Bxc4 {[%clk 0:02:19]} 19. Qc2 {[%clk 0:02:10]}  Bf7 {[%clk 0:01:55]} 20. Nh4 {[%clk 0:02:09]}  exd4 {[%clk 0:01:45]} 21. Rd1 {[%clk 0:02:00]}  f5 {[%clk 0:01:42]} 22. Rb1 {[%clk 0:01:53]}  Qc8 {[%clk 0:01:34]} 23. Bxc6 {[%clk 0:01:33]}  bxc6 {[%clk 0:01:32]} 24. cxd4 {[%clk 0:01:34]}  Qe6 {[%clk 0:01:18]} 25. Nf3 {[%clk 0:01:22]}  Rad8 {[%clk 0:01:12]} 26. Bf4 {[%clk 0:01:20]}  Qa2 {[%clk 0:00:49]} 27. Rb2 {[%clk 0:01:00]}  Qd5 {[%clk 0:00:48]} 28. Qd3 {[%clk 0:00:20]}  c5 {[%clk 0:00:42]} 29. Rb5 {[%clk 0:00:20]}  g5 {[%clk 0:00:30]} 30. Bxc7 {[%clk 0:00:17]}  Rd7 {[%clk 0:00:30]} 31. Rxc5 {[%clk 0:00:17]}  Qb7 {[%clk 0:00:08]} 32. Be5 {[%clk 0:00:10]}  Bd5 {[%clk 0:00:06]} 33. Bxg7 {[%clk 0:00:07]}  Kxg7 {[%clk 0:00:06]} 34. Ne5 {[%clk 0:00:06]}  Be4 {[%clk 0:00:03]} 35. Qc3 {[%clk 0:00:04]}  Rde7 {[%clk 0:00:02]} 36. d5 {[%clk 0:00:04]}  Rxe5 {[%clk 0:00:01]} 37. Rc7+ {[%clk 0:00:04]}  Qxc7 {[%clk 0:00:01]} 38. Qxc7+ {[%clk 0:00:04]}  R5e7 {[%clk 0:00:01]} 39. Qc3+ {[%clk 0:00:05]} 1-0


[Site "https://www.chess.com"]

[Event "Titled Tuesday Blitz May 2 Early 2023"]
[White "Richter, Paul"]
[Black "Milikow, Yoav"]
[WhiteFideId "2046350"]
[BlackFideId "2822237"]
[WhiteElo "2171"]
[BlackElo "2410"]
[Result "1-0"]
[Round "04"]
[TimeControl "180+2"]
[Date "2023.05.02"]
[WhiteClock "0:00:16"]
[BlackClock "0:00:03"]

1. e4 {[%clk 0:03:00]}  e5 {[%clk 0:02:57]} 2. Nf3 {[%clk 0:02:59]}  Nc6 {[%clk 0:02:57]} 3. Bb5 {[%clk 0:02:59]}  a6 {[%clk 0:02:57]} 4. Ba4 {[%clk 0:03:00]}  Nge7 {[%clk 0:02:57]} 5. Nc3 {[%clk 0:02:59]}  g6 {[%clk 0:02:48]} 6. d4 {[%clk 0:02:58]}  exd4 {[%clk 0:02:44]} 7. Nd5 {[%clk 0:02:57]}  Bg7 {[%clk 0:02:43]} 8. Bg5 {[%clk 0:02:57]}  b5 {[%clk 0:02:42]} 9. Bb3 {[%clk 0:02:50]}  h6 {[%clk 0:02:27]} 10. Bf6 {[%clk 0:02:49]}  Kf8 {[%clk 0:02:28]} 11. Qd2 {[%clk 0:02:44]}  Bxf6 {[%clk 0:02:24]} 12. Nxf6 {[%clk 0:02:44]}  Kg7 {[%clk 0:02:20]} 13. Nxd4 {[%clk 0:02:40]}  d6 {[%clk 0:01:49]} 14. Nxc6 {[%clk 0:02:13]}  Nxc6 {[%clk 0:01:50]} 15. Nd5 {[%clk 0:02:01]}  b4 {[%clk 0:01:44]} 16. Nxb4 {[%clk 0:01:54]}  Nxb4 {[%clk 0:01:43]} 17. Qxb4 {[%clk 0:01:55]}  Qf6 {[%clk 0:01:41]} 18. O-O-O {[%clk 0:01:48]}  a5 {[%clk 0:01:24]} 19. Qd4 {[%clk 0:01:42]}  Re8 {[%clk 0:01:11]} 20. f3 {[%clk 0:01:39]}  Re5 {[%clk 0:01:08]} 21. a3 {[%clk 0:01:25]}  Bb7 {[%clk 0:01:05]} 22. Bc4 {[%clk 0:01:14]}  Rb8 {[%clk 0:00:46]} 23. Kb1 {[%clk 0:01:03]}  Bc8 {[%clk 0:00:38]} 24. c3 {[%clk 0:00:57]}  Rb6 {[%clk 0:00:35]} 25. Ka1 {[%clk 0:00:31]}  c5 {[%clk 0:00:30]} 26. Qd3 {[%clk 0:00:27]}  Re7 {[%clk 0:00:25]} 27. Rhf1 {[%clk 0:00:22]}  g5 {[%clk 0:00:17]} 28. g3 {[%clk 0:00:21]}  Bh3 {[%clk 0:00:15]} 29. Rf2 {[%clk 0:00:20]}  Reb7 {[%clk 0:00:15]} 30. f4 {[%clk 0:00:20]}  Rb8 {[%clk 0:00:07]} 31. Qe3 {[%clk 0:00:20]}  gxf4 {[%clk 0:00:06]} 32. gxf4 {[%clk 0:00:21]}  Kf8 {[%clk 0:00:05]} 33. Qxh3 {[%clk 0:00:20]}  a4 {[%clk 0:00:04]} 34. Qd3 {[%clk 0:00:19]}  Qh4 {[%clk 0:00:04]} 35. Rdf1 {[%clk 0:00:19]}  Qh5 {[%clk 0:00:03]} 36. e5 {[%clk 0:00:18]}  d5 {[%clk 0:00:02]} 37. Qxd5 {[%clk 0:00:18]}  R8b7 {[%clk 0:00:03]} 38. Qxc5+ {[%clk 0:00:17]}  Kg8 {[%clk 0:00:03]} 39. Qc8+ {[%clk 0:00:16]}  Kh7 {[%clk 0:00:03]} 40. Bd3+ {[%clk 0:00:16]}  f5 {[%clk 0:00:03]} 1-0


[Site "https://www.chess.com"]

[Event "Titled Tuesday Blitz May 2 Early 2023"]
[White "Vakhlamov, Igor L."]
[Black "Mekhane, Adam"]
[WhiteFideId "24126748"]
[BlackFideId "36050601"]
[WhiteElo "2400"]
[BlackElo "2177"]
[Result "1-0"]
[Round "04"]
[TimeControl "180+2"]
[Date "2023.05.02"]
[WhiteClock "0:00:26"]
[BlackClock "0:01:01"]

1. e4 {[%clk 0:02:51]}  c5 {[%clk 0:02:56]} 2. Nf3 {[%clk 0:02:41]}  Nc6 {[%clk 0:02:56]} 3. Nc3 {[%clk 0:02:41]}  Nf6 {[%clk 0:02:54]} 4. Bb5 {[%clk 0:02:41]}  Qc7 {[%clk 0:02:51]} 5. O-O {[%clk 0:02:41]}  e5 {[%clk 0:02:50]} 6. Re1 {[%clk 0:02:35]}  d6 {[%clk 0:02:46]} 7. Nd5 {[%clk 0:02:35]}  Qd8 {[%clk 0:02:45]} 8. c3 {[%clk 0:02:33]}  Bd7 {[%clk 0:02:45]} 9. d4 {[%clk 0:02:31]}  cxd4 {[%clk 0:02:23]} 10. cxd4 {[%clk 0:02:30]}  Nxd4 {[%clk 0:02:23]} 11. Nxd4 {[%clk 0:02:20]}  exd4 {[%clk 0:02:19]} 12. Nxf6+ {[%clk 0:02:19]}  Qxf6 {[%clk 0:02:17]} 13. Bxd7+ {[%clk 0:02:19]}  Kxd7 {[%clk 0:02:15]} 14. Qa4+ {[%clk 0:02:19]}  Ke7 {[%clk 0:02:10]} 15. e5 {[%clk 0:02:08]}  dxe5 {[%clk 0:02:07]} 16. Qxd4 {[%clk 0:02:05]}  Ke6 {[%clk 0:01:52]} 17. Qc4+ {[%clk 0:01:52]}  Kd7 {[%clk 0:01:48]} 18. Qd5+ {[%clk 0:01:06]}  Bd6 {[%clk 0:01:47]} 19. Qxb7+ {[%clk 0:01:06]}  Ke6 {[%clk 0:01:47]} 20. Qb3+ {[%clk 0:01:05]}  Ke7 {[%clk 0:01:48]} 21. Qb7+ {[%clk 0:00:48]}  Ke6 {[%clk 0:01:46]} 22. Be3 {[%clk 0:00:44]}  Rhb8 {[%clk 0:01:42]} 23. Qa6 {[%clk 0:00:42]}  Ke7 {[%clk 0:01:41]} 24. Red1 {[%clk 0:00:32]}  Rd8 {[%clk 0:01:37]} 25. Rac1 {[%clk 0:00:29]}  Rd7 {[%clk 0:01:33]} 26. h4 {[%clk 0:00:27]}  Rad8 {[%clk 0:01:29]} 27. Bg5 {[%clk 0:00:26]}  Qxg5 {[%clk 0:01:18]} 28. hxg5 {[%clk 0:00:27]}  Bb8 {[%clk 0:01:16]} 29. Rxd7+ {[%clk 0:00:27]}  Rxd7 {[%clk 0:01:17]} 30. g3 {[%clk 0:00:25]}  e4 {[%clk 0:01:15]} 31. Re1 {[%clk 0:00:23]}  Kf8 {[%clk 0:01:15]} 32. Rxe4 {[%clk 0:00:23]}  Rd8 {[%clk 0:01:16]} 33. Qa3+ {[%clk 0:00:22]}  Kg8 {[%clk 0:01:16]} 34. Qe7 {[%clk 0:00:22]}  Rf8 {[%clk 0:01:16]} 35. Qd7 {[%clk 0:00:23]}  a5 {[%clk 0:01:14]} 36. Re8 {[%clk 0:00:23]}  Bd6 {[%clk 0:01:14]} 37. a3 {[%clk 0:00:21]}  a4 {[%clk 0:01:13]} 38. Qxa4 {[%clk 0:00:21]}  h6 {[%clk 0:01:10]} 39. gxh6 {[%clk 0:00:21]}  g6 {[%clk 0:01:10]} 40. b4 {[%clk 0:00:21]}  g5 {[%clk 0:01:08]} 41. Rxf8+ {[%clk 0:00:21]}  Bxf8 {[%clk 0:01:07]} 42. Qb5 {[%clk 0:00:22]}  f6 {[%clk 0:01:07]} 43. a4 {[%clk 0:00:23]}  f5 {[%clk 0:01:05]} 44. a5 {[%clk 0:00:23]}  f4 {[%clk 0:01:05]} 45. Qxg5+ {[%clk 0:00:23]}  Kh7 {[%clk 0:01:05]} 46. Qxf4 {[%clk 0:00:24]}  Bxh6 {[%clk 0:01:02]} 47. Qg4 {[%clk 0:00:24]}  Bg7 {[%clk 0:01:03]} 48. a6 {[%clk 0:00:25]}  Bh6 {[%clk 0:01:03]} 49. a7 {[%clk 0:00:25]}  Bg7 {[%clk 0:01:04]} 50. a8=Q {[%clk 0:00:24]}  Bf8 {[%clk 0:01:03]} 51. Qae4+ {[%clk 0:00:24]}  Kh8 {[%clk 0:01:03]} 52. Qe5+ {[%clk 0:00:24]}  Kh7 {[%clk 0:01:02]} 53. Qeh5+ {[%clk 0:00:24]}  Bh6 {[%clk 0:01:03]} 54. Qhg6+ {[%clk 0:00:25]}  Kh8 {[%clk 0:01:01]} 55. Qxh6# {[%clk 0:00:26]} 1-0


[Site "https://www.chess.com"]

[Event "Titled Tuesday Blitz May 2 Early 2023"]
[White "Jaskolka, Tomasz"]
[Black "Tanenbaum, Zachary"]
[WhiteFideId "1170791"]
[BlackFideId "2060850"]
[WhiteElo "2155"]
[BlackElo "2175"]
[Result "1-0"]
[Round "04"]
[TimeControl "180+2"]
[Date "2023.05.02"]
[WhiteClock "0:00:08"]
[BlackClock "0:00:01"]

1. d4 {[%clk 0:03:00]}  d5 {[%clk 0:02:59]} 2. Be3 {[%clk 0:03:00]}  Nf6 {[%clk 0:02:59]} 3. Nf3 {[%clk 0:02:57]}  Bf5 {[%clk 0:02:57]} 4. c4 {[%clk 0:02:56]}  e6 {[%clk 0:02:42]} 5. Nc3 {[%clk 0:02:57]}  dxc4 {[%clk 0:02:32]} 6. Qa4+ {[%clk 0:02:55]}  Nc6 {[%clk 0:02:29]} 7. Ne5 {[%clk 0:02:39]}  Bb4 {[%clk 0:02:17]} 8. Nxc6 {[%clk 0:02:34]}  Bxc3+ {[%clk 0:02:17]} 9. bxc3 {[%clk 0:02:34]}  Qd7 {[%clk 0:02:17]} 10. Qxc4 {[%clk 0:02:31]}  bxc6 {[%clk 0:02:17]} 11. Bg5 {[%clk 0:02:13]}  Nd5 {[%clk 0:01:32]} 12. f3 {[%clk 0:01:59]}  h6 {[%clk 0:01:19]} 13. Bd2 {[%clk 0:01:59]}  Bg6 {[%clk 0:01:08]} 14. e4 {[%clk 0:01:57]}  Nb6 {[%clk 0:01:05]} 15. Qb4 {[%clk 0:01:51]}  a5 {[%clk 0:00:52]} 16. Qb3 {[%clk 0:01:47]}  O-O {[%clk 0:00:52]} 17. Bd3 {[%clk 0:01:47]}  c5 {[%clk 0:00:50]} 18. Be3 {[%clk 0:01:27]}  Rfb8 {[%clk 0:00:40]} 19. Qc2 {[%clk 0:01:26]}  c4 {[%clk 0:00:26]} 20. Be2 {[%clk 0:01:26]}  Na4 {[%clk 0:00:25]} 21. Bxc4 {[%clk 0:01:09]}  Rb2 {[%clk 0:00:24]} 22. Qd3 {[%clk 0:01:09]}  Nc5 {[%clk 0:00:07]} 23. dxc5 {[%clk 0:01:02]}  Qe7 {[%clk 0:00:07]} 24. O-O {[%clk 0:01:00]}  Rd8 {[%clk 0:00:08]} 25. Bd4 {[%clk 0:00:48]}  e5 {[%clk 0:00:08]} 26. Rab1 {[%clk 0:00:43]}  Rxb1 {[%clk 0:00:08]} 27. Rxb1 {[%clk 0:00:43]}  exd4 {[%clk 0:00:09]} 28. cxd4 {[%clk 0:00:42]}  Qf6 {[%clk 0:00:09]} 29. Rd1 {[%clk 0:00:39]}  c6 {[%clk 0:00:09]} 30. Qe3 {[%clk 0:00:33]}  Qe7 {[%clk 0:00:08]} 31. d5 {[%clk 0:00:32]}  cxd5 {[%clk 0:00:08]} 32. Rxd5 {[%clk 0:00:33]}  Rb8 {[%clk 0:00:07]} 33. h3 {[%clk 0:00:33]}  Qh4 {[%clk 0:00:06]} 34. Rd1 {[%clk 0:00:29]}  Qg3 {[%clk 0:00:06]} 35. c6 {[%clk 0:00:25]}  Rb2 {[%clk 0:00:05]} 36. Be2 {[%clk 0:00:22]}  Rxa2 {[%clk 0:00:06]} 37. Rd2 {[%clk 0:00:16]}  Ra1+ {[%clk 0:00:06]} 38. Bf1 {[%clk 0:00:17]}  Rc1 {[%clk 0:00:04]} 39. Rd8+ {[%clk 0:00:16]}  Kh7 {[%clk 0:00:04]} 40. Qxc1 {[%clk 0:00:17]}  Qc7 {[%clk 0:00:04]} 41. Rd5 {[%clk 0:00:13]}  a4 {[%clk 0:00:04]} 42. Rd7 {[%clk 0:00:13]}  Qb6+ {[%clk 0:00:04]} 43. Kh1 {[%clk 0:00:13]}  a3 {[%clk 0:00:03]} 44. c7 {[%clk 0:00:12]}  a2 {[%clk 0:00:03]} 45. c8=Q {[%clk 0:00:12]}  Qb1 {[%clk 0:00:04]} 46. Q8c3 {[%clk 0:00:10]}  h5 {[%clk 0:00:03]} 47. Rd1 {[%clk 0:00:09]}  Qb6 {[%clk 0:00:02]} 48. Q1b2 {[%clk 0:00:08]}  Qe6 {[%clk 0:00:01]} 49. Qxg7# {[%clk 0:00:08]} 1-0


[Site "https://www.chess.com"]